bitfinex/quotes_SOLUSD_20260308
["timestamp","ask_amount","ask_price","bid_price","bid_amount"]
[1772998418293,30.32251021,82.447,82.39,0.49355035]
[1772998418294,0.48283005,82.444,82.39,0.49355035]
[1772998419403,0.48283005,82.444,82.392,0.77787349]
[1772998419710,0.48283005,82.439,82.393,0.49355035]
[1772998420004,0.48283005,82.429,82.393,0.49355035]
[1772998421207,0.48283005,82.429,82.379,0.49355035]
[1772998421589,0.48283005,82.427,82.379,0.49355035]
[1772998422995,12.13209424,82.426,82.379,0.49355035]
[1772998423197,0.48283005,82.425,82.379,0.49355035]
[1772998423713,0.48283005,82.425,82.381,0.49355035]
[1772998425002,0.48283005,82.425,82.38,0.28432314]
[1772998425003,0.48283005,82.423,82.384,0.49355035]
[1772998428488,0.48283005,82.443,82.387,0.49355035]
[1772998429596,12.12973969,82.442,82.39,0.49355035]
[1772998430008,0.48283005,82.441,82.39,0.49355035]
[1772998430393,12.12973969,82.442,82.39,0.49355035]
[1772998431310,12.61256974,82.442,82.39,0.49355035]
[1772998431716,12.12973969,82.442,82.393,0.49355035]
[1772998432492,12.12895574,82.448,82.394,3.69383402]
[1772998432717,12.12895574,82.448,82.396,0.49355035]
[1772998434215,0.48283005,82.451,82.399,0.49355035]
[1772998434407,0.48283005,82.439,82.399,0.49355035]
[1772998434596,0.48283005,82.464,82.402,0.49355035]
[1772998435692,0.48283005,82.459,82.402,0.49355035]
[1772998436289,42.44018964,82.469,82.407,0.49355035]
[1772998436290,0.48283005,82.457,82.407,0.49355035]
[1772998436514,0.48283005,82.457,82.408,0.49355035]
[1772998438702,0.48283005,82.455,82.411,0.49355035]
[1772998440719,0.48283005,82.453,82.412,12.13415522]
[1772998440920,0.48283005,82.449,82.396,0.49355035]
[1772998441118,0.48283005,82.449,82.398,0.49355035]
[1772998441316,12.12797438,82.454,82.398,0.49355035]
[1772998441619,0.48283005,82.479,82.413,4.82477569]
[1772998441825,0.48283005,82.517,82.44,3.69383402]
[1772998442117,0.48283005,82.517,82.437,4.82477569]
[1772998442118,0.48283005,82.551,82.467,3.69383402]
[1772998442295,0.48283005,82.564,82.484,5.31832604]
[1772998442494,12.10919937,82.62,82.5,0.49355035]
[1772998442495,0.48283005,82.559,82.5,0.49355035]
[1772998442697,42.39957358,82.548,82.493,12.12212334]
[1772998442895,0.45452505,82.539,82.495,0.45131632]
[1772998443303,0.45452505,82.547,82.496,0.45131632]
[1772998444322,12.11416388,82.548,82.496,0.45131632]
[1772998444898,0.45452505,82.549,82.499,0.45131632]
[1772998445512,12.10919937,82.54,82.499,0.45131632]
[1772998445813,0.49631217,82.539,82.499,0.45131632]
[1772998446018,0.49631217,82.529,82.481,0.49933968]
[1772998446908,0.49631217,82.527,82.482,0.49933968]
[1772998447112,0.49631217,82.527,82.483,0.49933968]
[1772998449022,0.49631217,82.525,82.482,0.14216157]
[1772998449213,0.49631217,82.519,82.482,0.14216157]
[1772998449414,0.49631217,82.519,82.474,0.49933968]
[1772998449734,0.49631217,82.519,82.477,0.49933968]
[1772998450926,0.49631217,82.517,82.477,0.49933968]
[1772998451421,0.49631217,82.489,82.376,54.54]
[1772998451624,0.49631217,82.479,82.377,1.21393107]
[1772998451825,0.49631217,82.479,82.381,8.51860971]
[1772998452124,0.49631217,82.479,82.389,4.82477569]
[1772998452426,0.28432314,82.512,82.376,54.54]
[1772998452427,0.49631217,82.516,82.394,0.28432314]
[1772998452727,0.49631217,82.516,82.403,8.51860971]
[1772998452916,0.49631217,82.514,82.413,0.28432314]
[1772998453223,0.49631217,82.514,82.426,8.51860971]
[1772998453422,0.49631217,82.514,82.441,0.49933968]
[1772998453731,0.49631217,82.514,82.461,0.49933968]
[1772998453920,0.49631217,82.512,82.463,0.49933968]
[1772998454224,0.49631217,82.512,82.465,0.49933968]
[1772998455307,0.49631217,82.512,82.466,0.49933968]
[1772998455917,0.49631217,82.51,82.469,0.49933968]
[1772998456326,0.49631217,82.51,82.464,0.49933968]
[1772998456627,0.49631217,82.509,82.466,0.49933968]
[1772998456833,0.49631217,82.509,82.467,0.49933968]
[1772998458010,0.49631217,82.509,82.466,0.28432314]
[1772998458011,0.49631217,82.507,82.466,0.28432314]
[1772998458218,0.49631217,82.499,82.455,0.49933968]
[1772998458610,0.49631217,82.499,82.456,0.49933968]
[1772998460122,0.49631217,82.497,82.458,0.14216157]
[1772998461014,0.49631217,82.497,82.457,12.62687281]
[1772998461626,0.49631217,82.497,82.457,12.12753313]
[1772998461938,0.49631217,82.497,82.457,12.62687281]
[1772998462534,0.49631217,82.495,82.458,0.49933968]
[1772998463713,0.49631217,82.495,82.451,0.49933968]
[1772998464810,0.49631217,82.493,82.454,0.49933968]
[1772998466645,0.49631217,82.491,82.457,0.49933968]
[1772998468629,12.08993782,82.51,82.456,0.28432314]
[1772998468630,0.49631217,82.499,82.46,0.49933968]
[1772998469220,0.49631217,82.498,82.46,0.49933968]
[1772998469534,0.49631217,82.498,82.459,0.49933968]
[1772998470519,0.49631217,82.496,82.46,12.6264316]
[1772998471037,0.49631217,82.496,82.461,0.49933968]
[1772998471821,0.49631217,82.496,82.462,0.49933968]
[1772998472530,0.49631217,82.496,82.461,0.28432314]
[1772998472531,0.49631217,82.496,82.465,0.49933968]
[1772998472727,12.1216529,82.497,82.465,0.49933968]
[1772998472919,12.12108293,82.501,82.465,0.49933968]
[1772998473228,0.46766772,82.532,82.467,0.28432314]
[1772998473430,0.46766772,82.532,82.475,0.47322253]
[1772998473627,0.46766772,82.529,82.475,0.47322253]
[1772998474025,0.46766772,82.519,82.475,0.47322253]
[1772998474230,0.46766772,82.539,82.482,4.82477569]
[1772998474525,0.46766772,82.537,82.488,0.47322253]
[1772998475538,0.46766772,82.529,82.488,0.47322253]
[1772998476136,0.46766772,82.529,82.482,12.12382598]
[1772998476524,42.40471054,82.538,82.469,0.47322253]
[1772998476525,0.46766772,82.517,82.469,0.47322253]
[1772998476840,0.46766772,82.509,82.459,0.47322253]
[1772998477231,42.41498823,82.518,82.443,0.47322253]
[1772998477232,0.46766772,82.489,82.443,0.47322253]
[1772998478943,0.46766772,82.487,82.445,0.47322253]
[1772998479331,0.46766772,82.515,82.447,0.47322253]
[1772998479528,0.46766772,82.515,82.448,0.47322253]
[1772998480447,0.46766772,82.509,82.448,0.47322253]
[1772998481032,0.46766772,82.507,82.451,0.47322253]
[1772998482447,0.46766772,82.507,82.45,0.28432314]
[1772998483546,0.46766772,82.505,82.452,0.28432314]
[1772998483743,0.46766772,82.505,82.453,0.47322253]
[1772998483930,0.46766772,82.499,82.447,0.47322253]
[1772998484134,0.46766772,82.509,82.447,0.75754567]
[1772998484332,0.46766772,82.509,82.454,0.47322253]
[1772998484548,0.46766772,82.527,82.457,0.47322253]
[1772998484729,12.11592517,82.536,82.473,4.82477569]
[1772998485044,0.46766772,82.535,82.477,0.47322253]
[1772998485248,0.46766772,82.535,82.467,4.82477569]
[1772998485249,0.46766772,82.563,82.492,0.47322253]
[1772998485446,0.46766772,82.563,82.49,0.28432314]
[1772998485447,0.46766772,82.561,82.497,0.47322253]
[1772998485628,0.46766772,82.578,82.502,0.47322253]
[1772998485834,0.46766772,82.578,82.515,0.47322253]
[1772998486235,0.46766772,82.576,82.515,0.47322253]
[1772998486640,0.46766772,82.576,82.507,0.47322253]
[1772998486845,0.46766772,82.569,82.507,0.47322253]
[1772998487152,0.46766772,82.567,82.507,0.47322253]
[1772998487336,0.46766772,82.565,82.507,0.47322253]
[1772998487766,0.46766772,82.563,82.508,12.59325937]
[1772998487965,0.46766772,82.563,82.509,0.47322253]
[1772998489844,0.46766772,82.561,82.511,0.47322253]
[1772998490754,0.46766772,82.559,82.504,12.12052196]
[1772998490949,0.46766772,82.557,82.505,0.47322253]
[1772998491134,0.46766772,82.555,82.505,0.47322253]
[1772998492159,42.39238389,82.562,82.475,1.21248863]
[1772998492160,0.46766772,82.553,82.507,0.47322253]
[1772998493257,0.46766772,82.551,82.509,0.47322253]
[1772998494344,0.46766772,82.551,82.51,0.47322253]
[1772998496746,0.46766772,82.551,82.511,42.4185866]
[1772998497056,12.11290828,82.557,82.513,0.47322253]
[1772998497440,0.46766772,82.56,82.513,0.47322253]
[1772998497659,0.46766772,82.581,82.515,0.75754567]
[1772998497962,0.46766772,82.581,82.516,0.47322253]
[1772998498950,30.27272556,82.583,82.519,0.47322253]
[1772998498951,0.46766772,82.579,82.519,0.47322253]
[1772998500849,42.38519666,82.576,82.513,12.11930241]
[1772998501042,0.46766772,82.559,82.507,12.12018374]
[1772998501263,0.46766772,82.559,82.501,12.59417157]
[1772998501465,12.08681598,82.56,82.501,12.59417157]
[1772998501466,0.46766772,82.557,82.501,12.59417157]
[1772998501667,0.46766772,82.557,82.502,0.47322253]
[1772998501847,0.46766772,82.555,82.502,0.47322253]
[1772998502248,0.46766772,82.553,82.501,12.12094904]
[1772998502641,0.46766772,82.551,82.501,12.12094904]
[1772998502844,42.39957358,82.548,82.492,12.12224782]
[1772998503040,0.48058632,82.546,82.493,0.47979604]
[1772998503245,0.48058632,82.544,82.492,12.12224782]
[1772998503445,0.48058632,82.539,82.478,30.31098479]
[1772998504057,0.48058632,82.529,82.477,0.47979604]
[1772998504259,0.48058632,82.529,82.467,0.47979604]
[1772998504467,3.97815716,82.538,82.429,0.47979604]
[1772998504468,0.48058632,82.509,82.429,0.47979604]
[1772998504969,0.48058632,82.509,82.403,1.21354805]
[1772998504970,0.48058632,82.507,82.431,0.47979604]
[1772998505349,0.48022854,82.499,82.431,0.47979604]
[1772998505768,0.48022854,82.499,82.432,0.47290344]
[1772998506249,0.48022854,82.499,82.436,0.47290344]
[1772998507165,0.48022854,82.497,82.438,0.28432314]
[1772998507467,0.48022854,82.497,82.439,0.47290344]
[1772998507854,0.48022854,82.489,82.437,12.13047539]
[1772998508243,0.48022854,82.459,82.405,0.47290344]
[1772998508952,0.48022854,82.459,82.404,12.13533323]
[1772998509167,42.44585121,82.458,82.396,12.13651148]
[1772998509346,42.44585121,82.458,82.397,0.47290344]
[1772998509347,0.48022854,82.457,82.397,0.47290344]
[1772998510368,0.48022854,82.439,82.383,12.13830444]
[1772998510547,0.48022854,82.439,82.384,0.47290344]
[1772998510866,0.48022854,82.439,82.385,0.47290344]
[1772998512147,12.13032824,82.438,82.386,42.48294612]
[1772998512350,0.48022854,82.437,82.388,0.47290344]
[1772998514677,0.48022854,82.437,82.391,0.47290344]
[1772998516382,12.61084408,82.437,82.391,0.47290344]
[1772998516560,0.48022854,82.437,82.391,0.47290344]
[1772998517572,0.48022854,82.437,82.394,0.47290344]
[1772998518684,0.48022854,82.456,82.396,0.47290344]
[1772998518892,0.48022854,82.464,82.399,0.47290344]
[1772998519383,0.48022854,82.486,82.415,4.82477569]
[1772998519562,13.33311357,82.507,82.425,0.47290344]
[1772998519563,0.48022854,82.484,82.425,0.47290344]
[1772998521560,0.48022854,82.482,82.428,0.47290344]
[1772998524189,0.48022854,82.482,82.431,0.47290344]
[1772998524391,30.30480934,82.496,82.431,0.47290344]
[1772998524392,0.48022854,82.48,82.431,0.47290344]
[1772998524577,0.48022854,82.536,82.434,0.47290344]
[1772998524879,0.48022854,82.536,82.47,4.16673746]
[1772998525061,0.48022854,82.536,82.477,0.47290344]
[1772998526270,0.48022854,82.536,82.48,0.47290344]
[1772998527381,12.11607196,82.535,82.48,0.47290344]
[1772998527584,0.48022854,82.534,82.48,0.47290344]
[1772998527985,0.48022854,82.557,82.487,0.47290344]
[1772998528285,0.48022854,82.555,82.49,0.47290344]
[1772998530586,0.48022854,82.553,82.493,0.47290344]
[1772998532894,0.46251655,82.551,82.496,0.47662448]
[1772998534377,0.46251655,82.551,82.495,0.28432314]
[1772998534818,0.46251655,82.551,82.496,0.47662448]
[1772998535695,0.46251655,82.549,82.498,0.47662448]
[1772998536179,0.46251655,82.549,82.497,42.42578517]
[1772998537395,0.46251655,82.547,82.498,0.47662448]
[1772998538779,0.46251655,82.547,82.492,0.28432314]
[1772998538982,0.46251655,82.547,82.493,0.47662448]
[1772998539485,0.46251655,82.545,82.496,0.47662448]
[1772998539886,0.46251655,82.545,82.494,12.12209372]
[1772998540280,0.46251655,82.545,82.495,0.47662448]
[1772998541783,42.40162822,82.544,82.496,12.12179984]
[1772998541983,0.46251655,82.543,82.496,12.12179984]
[1772998542185,0.46251655,82.543,82.497,0.47662448]
[1772998542694,0.46251655,82.543,82.496,12.12179984]
[1772998542902,0.46251655,82.543,82.491,12.12241613]
[1772998543795,0.46251655,82.541,82.481,0.47662448]
[1772998544093,0.46251655,82.539,82.481,0.47662448]
[1772998544295,0.46251655,82.539,82.48,12.1241513]
[1772998545285,0.46251655,82.537,82.48,12.1241513]
[1772998547704,0.46251655,82.535,82.48,0.47662448]
[1772998548001,0.46251655,82.529,82.473,0.47662448]
[1772998548203,0.46251655,82.529,82.461,0.47662448]
[1772998549902,0.46251655,82.527,82.464,0.47662448]
[1772998551291,0.46251655,82.527,82.463,0.28432314]
[1772998551292,0.46251655,82.527,82.467,0.47662448]
[1772998552007,12.57990985,82.526,82.47,0.47662448]
[1772998552201,0.46251655,82.525,82.47,0.47662448]
[1772998554805,0.46251655,82.525,82.472,0.76094762]
[1772998555096,0.46251655,82.525,82.473,0.47662448]
[1772998555908,0.46251655,82.525,82.476,0.47662448]
[1772998557502,0.46251655,82.531,82.478,0.47662448]
[1772998558902,0.46251655,82.531,82.481,0.47662448]
[1772998559494,0.46251655,82.529,82.484,0.47662448]
[1772998561515,30.28934013,82.538,82.487,0.47662448]
[1772998561516,0.46251655,82.527,82.487,0.47662448]
[1772998563718,0.48568518,82.525,82.481,12.12400431]
[1772998563902,0.48568518,82.525,82.483,0.49276507]
[1772998567521,0.48568518,82.525,82.486,0.46509737]
[1772998567918,0.47312977,82.523,82.486,0.46509737]
[1772998570622,0.47312977,82.523,82.488,0.46509737]
[1772998570806,0.47312977,82.523,82.489,0.46509737]
[1772998571707,0.47312977,82.521,82.489,0.46509737]
[1772998573513,0.47312977,82.521,82.491,0.46509737]
[1772998573713,12.11445739,82.546,82.492,0.46509737]
[1772998574113,42.40060087,82.546,82.492,0.46509737]
[1772998575628,42.40060087,82.546,82.481,60.62002158]
[1772998575629,0.47312977,82.543,82.495,0.46509737]
[1772998578126,0.47312977,82.544,82.498,0.46509737]
[1772998578334,0.47312977,82.542,82.498,0.46509737]
[1772998580318,0.47312977,82.54,82.501,0.46509737]
[1772998583145,0.47312977,82.538,82.504,0.46509737]
[1772998585619,60.55168174,82.575,82.502,42.42321398]
[1772998585620,0.47312977,82.536,82.507,0.46509737]
[1772998586614,0.47312977,82.555,82.507,0.46509737]
[1772998586815,0.47312977,82.554,82.507,0.46509737]
[1772998587736,0.47312977,82.554,82.51,0.46509737]
[1772998588739,12.11343016,82.553,82.51,0.46509737]
[1772998588928,0.47312977,82.552,82.51,0.46509737]
[1772998592553,0.47312977,82.552,82.513,0.46509737]
[1772998592945,0.45817258,82.55,82.513,0.46509737]
[1772998594247,12.11315783,82.555,82.513,0.46509737]
[1772998594550,0.45817258,82.554,82.516,0.45499621]
[1772998596262,0.45817258,82.554,82.514,42.41704437]
[1772998596263,0.45817258,82.554,82.514,12.11915553]
[1772998596550,0.45817258,82.554,82.51,12.11969504]
[1772998596733,0.45817258,82.552,82.505,0.28432314]
[1772998597061,0.45817258,82.552,82.505,0.73931935]
[1772998598335,0.45817258,82.55,82.506,12.12033064]
[1772998600138,0.45817258,82.548,82.502,30.30228556]
[1772998600536,0.45817258,82.548,82.504,0.45499621]
[1772998600741,0.45817258,82.548,82.476,0.45499621]
[1772998600945,0.45817258,82.548,82.477,0.45499621]
[1772998602025,102.96914558,82.549,82.483,0.45499621]
[1772998602026,0.45817258,82.546,82.483,0.45499621]
[1772998602238,0.45817258,82.546,82.486,0.45499621]
[1772998604144,0.45817258,82.544,82.488,0.45499621]
[1772998607249,0.45817258,82.542,82.491,0.45499621]
[1772998609958,0.45817258,82.54,82.493,0.45499621]
[1772998612459,0.45817258,82.538,82.495,0.45499621]
[1772998613856,0.45817258,82.536,82.472,30.31326324]
[1772998614156,0.45817258,82.529,82.469,12.12576847]
[1772998614360,0.45817258,82.529,82.47,0.45499621]
[1772998615652,0.45817258,82.529,82.464,12.12643063]
[1772998615964,0.45817258,82.517,82.466,12.58120579]
[1772998616254,0.45817258,82.517,82.467,0.45499621]
[1772998616460,0.45817258,82.517,82.466,12.12620958]
[1772998617658,0.45817258,82.517,82.455,0.45499621]
[1772998617837,103.00782857,82.518,82.442,0.45499621]
[1772998617838,0.45817258,82.497,82.442,0.45499621]
[1772998620042,0.45817258,82.495,82.444,0.45499621]
[1772998620861,0.45817258,82.495,82.445,0.45499621]
[1772998621063,4.51020675,82.54,82.449,0.45499621]
[1772998621367,4.51020675,82.52,82.449,0.45499621]
[1772998621559,4.51020675,82.52,82.443,12.58458877]
[1772998621560,4.51020675,82.5,82.443,12.58458877]
[1772998621741,4.51020675,82.5,82.444,0.45499621]
[1772998622255,42.42475665,82.499,82.445,12.58429453]
[1772998622449,42.42475665,82.499,82.446,0.45499621]
[1772998623056,0.25253579,82.498,82.446,0.45499621]
[1772998624566,0.25253579,82.498,82.445,42.45254412]
[1772998624567,12.1216529,82.497,82.449,0.46566885]
[1772998625870,0.25253579,82.502,82.452,0.49651839]
[1772998627663,0.25253579,82.501,82.455,0.49651839]
[1772998628757,0.25253579,82.501,82.458,0.49651839]
[1772998631175,12.12121212,82.5,82.461,0.49651839]
[1772998633260,0.25253579,82.499,82.464,0.49651839]
[1772998635877,0.25253579,82.508,82.466,0.49651839]
[1772998639077,0.25253579,82.508,82.469,0.49651839]
[1772998641985,0.25253579,82.508,82.472,0.49651839]
[1772998643478,0.25253579,82.506,82.472,0.49651839]
[1772998643958,0.25253579,82.506,82.471,0.28432314]
[1772998643959,0.25253579,82.506,82.474,0.49651839]
[1772998644985,12.03080319,82.57,82.474,0.49651839]
[1772998644986,0.25253579,82.525,82.475,0.49651839]
[1772998646188,0.25253579,82.523,82.477,0.49651839]
[1772998649090,0.25253579,82.521,82.479,0.49651839]
[1772998652071,0.25253579,82.519,82.481,0.49651839]
[1772998652980,12.37009729,82.525,82.482,0.46697873]
[1772998653170,12.11615955,82.535,82.482,0.46697873]
[1772998654189,0.25253579,82.538,82.485,0.46697873]
[1772998655168,0.25253579,82.536,82.485,0.46697873]
[1772998656295,0.25253579,82.539,82.488,0.46697873]
[1772998658281,0.25253579,82.537,82.491,0.46697873]
[1772998660997,12.11592517,82.536,82.494,0.46697873]
[1772998661176,0.25253579,82.544,82.494,0.46697873]
[1772998662794,0.25253579,82.542,82.496,0.46697873]
[1772998665607,0.25253579,82.54,82.498,0.46697873]
[1772998667127,0.25253579,82.538,82.5,0.46697873]
[1772998669514,0.25253579,82.536,82.502,0.46697873]
[1772998670498,12.36770797,82.542,82.503,0.46697873]
[1772998670801,0.25253579,82.557,82.503,0.46697873]
[1772998671493,60.55603826,82.569,82.505,0.46697873]
[1772998671494,0.25253579,82.555,82.505,0.46697873]
[1772998672818,0.25253579,82.564,82.507,0.46697873]
[1772998674011,0.25253579,82.564,82.508,0.46697873]
[1772998674812,0.25253579,82.562,82.51,0.6091403]
[1772998675009,0.25253579,82.562,82.511,0.46697873]
[1772998678915,0.25253579,82.56,82.514,0.46697873]
[1772998680802,0.25253579,82.56,82.513,0.46697873]
[1772998681002,0.25253579,82.558,82.515,0.46697873]
[1772998681207,0.25253579,82.557,82.508,0.46697873]
[1772998681798,4.51468256,82.55,82.49,0.46697873]
[1772998682003,0.25253579,82.549,82.49,0.46697873]
[1772998682205,0.25253579,82.547,82.492,0.46697873]
[1772998682406,0.25253579,82.547,82.493,0.46697873]
[1772998683826,4.51468256,82.55,82.495,0.46753826]
[1772998683827,0.25253579,82.545,82.495,0.46753826]
[1772998684319,42.40060087,82.546,82.489,12.12268656]
[1772998684320,0.25253579,82.539,82.489,12.12268656]
[1772998684626,0.25253579,82.539,82.49,0.46753826]
[1772998686112,0.25253579,82.537,82.492,0.48412235]
[1772998687226,0.25253579,82.535,82.493,12.12224067]
[1772998687531,0.25253579,82.535,82.494,0.48412235]
[1772998689415,0.25253579,82.533,82.494,0.48412235]
[1772998689811,0.25253579,82.533,82.495,12.12194678]
[1772998690227,0.25253579,82.533,82.495,12.60606913]
[1772998690920,0.25253579,82.533,82.496,0.48412235]
[1772998692226,0.25253579,82.531,82.496,0.48412235]
[1772998693635,0.25253579,82.529,82.496,0.48412235]
[1772998694838,0.25253579,82.529,82.464,30.3159217]
[1772998695020,0.49329919,82.519,82.464,30.3159217]
[1772998695730,0.49329919,82.517,82.447,46.14534831]
[1772998695923,0.49329919,82.516,82.447,46.14534831]
[1772998696123,0.49329919,82.516,82.448,0.28432314]
[1772998696840,0.49329919,82.513,82.454,0.48412235]
[1772998697043,0.49329919,82.509,82.454,0.48412235]
[1772998698048,0.28432314,82.514,82.451,0.28432314]
[1772998698049,0.49329919,82.507,82.456,0.48412235]
[1772998698246,0.49329919,82.516,82.457,0.48412235]
[1772998698423,0.49329919,82.54,82.457,0.48412235]
[1772998698623,0.49329919,82.539,82.457,0.48412235]
[1772998699135,0.49329919,82.535,82.457,0.48412235]
[1772998699843,0.49329919,82.531,82.46,0.48412235]
[1772998701532,0.49329919,82.529,82.463,0.48412235]
[1772998701843,36.38348189,82.652,82.462,0.28432314]
[1772998701844,0.49329919,82.534,82.466,0.48412235]
[1772998702040,0.49329919,82.544,82.475,0.48412235]
[1772998702222,0.49329919,82.544,82.48,4.82477569]
[1772998702541,12.11405856,82.549,82.484,0.28432314]
[1772998702723,12.11405856,82.549,82.485,0.48412235]
[1772998702924,0.49329919,82.548,82.485,0.48412235]
[1772998703643,12.60760982,82.547,82.488,0.48412235]
[1772998703839,0.49329919,82.546,82.488,0.48412235]
[1772998705247,0.49329919,82.544,82.491,0.48412235]
[1772998706646,0.49329919,82.542,82.494,0.48412235]
[1772998708622,0.49329919,82.54,82.495,12.12194678]
[1772998708828,4.51241911,82.53,82.475,0.48412235]
[1772998709040,0.49329919,82.528,82.475,0.48412235]
[1772998712732,42.41036266,82.527,82.476,42.4365876]
[1772998713061,0.46402599,82.526,82.477,0.49464863]
[1772998715034,0.46402599,82.526,82.476,42.4365876]
[1772998715035,0.46402599,82.524,82.479,0.49464863]
[1772998718159,0.46402599,82.522,82.481,0.49464863]
[1772998720746,0.46402599,82.52,82.482,12.61850595]
[1772998721250,0.46402599,82.52,82.483,0.49464863]
[1772998722347,0.46402599,82.519,82.472,0.49464863]
[1772998722854,0.46402599,82.517,82.474,0.49464863]
[1772998726358,0.46402599,82.515,82.476,0.49464863]
[1772998729065,0.46402599,82.513,82.478,0.49464863]
[1772998732058,0.46402599,82.523,82.48,0.49464863]
[1772998733157,0.46402599,82.522,82.482,0.49464863]
[1772998736263,0.46402599,82.52,82.484,0.49464863]
[1772998736456,12.1181275,82.521,82.484,0.49464863]
[1772998736457,0.46402599,82.529,82.484,0.49464863]
[1772998736656,0.46402599,82.534,82.484,0.49464863]
[1772998737774,0.46402599,82.534,82.485,42.43195731]
[1772998738070,0.46402599,82.534,82.486,0.49464863]
[1772998738277,12.11636557,82.533,82.486,0.49464863]
[1772998738860,12.58039156,82.533,82.486,0.49464863]
[1772998739656,0.46402599,82.532,82.488,0.49464863]
[1772998740676,0.46402599,82.528,82.483,0.49464863]
[1772998741380,4.51241911,82.53,82.458,0.49464863]
[1772998741381,4.51241911,82.51,82.458,0.49464863]
[1772998741578,0.46402599,82.497,82.458,0.49464863]
[1772998741880,0.46402599,82.497,82.459,12.12723899]
[1772998742259,0.46402599,82.497,82.459,12.62188762]
[1772998742460,0.46402599,82.497,82.46,0.49464863]
[1772998744157,0.4608049,82.495,82.462,0.49419571]
[1772998745177,12.12209372,82.494,82.464,0.46610768]
[1772998745481,12.60545594,82.494,82.464,0.46610768]
[1772998745983,0.48336222,82.493,82.464,0.46610768]
[1772998747579,0.48336222,82.491,82.464,0.46610768]
[1772998749373,0.48336222,82.491,82.466,0.46610768]
[1772998749789,0.48336222,82.489,82.466,0.46610768]
[1772998750970,0.48336222,82.491,82.449,0.46610768]
[1772998753189,0.28432314,82.509,82.449,0.46610768]
[1772998753190,0.48336222,82.489,82.449,0.46610768]
[1772998754290,0.48336222,82.487,82.451,0.46610768]
[1772998755282,0.48336222,82.485,82.452,12.59437624]
[1772998755475,0.48336222,82.485,82.441,0.46610768]
[1772998757806,0.48336222,82.483,82.443,0.46610768]
[1772998760099,0.48336222,82.481,82.445,0.46610768]
[1772998760596,0.48336222,82.481,82.439,12.59615059]
[1772998760800,0.48336222,82.478,82.434,12.59692639]
[1772998761994,0.48336222,82.476,82.435,0.46610768]
[1772998763400,0.48336222,82.495,82.435,0.46610768]
[1772998763897,0.48336222,82.495,82.414,3.69383402]
[1772998763898,0.48336222,82.493,82.437,0.46610768]
[1772998764997,0.48336222,82.491,82.439,0.46610768]
[1772998765493,0.48336222,82.49,82.439,0.46610768]
[1772998765693,0.48336222,82.488,82.439,0.46610768]
[1772998767081,0.48336222,82.485,82.441,0.46610768]
[1772998769080,0.48336222,82.483,82.443,0.46610768]
[1772998769301,0.48336222,82.479,82.433,0.46610768]
[1772998770198,0.48336222,82.478,82.43,0.46610768]
[1772998771001,12.12356335,82.484,82.43,0.46610768]
[1772998771293,12.12356335,82.484,82.415,0.28432314]
[1772998771294,0.48336222,82.481,82.432,0.46610768]
[1772998772580,0.48336222,82.48,82.432,0.46610768]
[1772998773286,0.47123779,82.477,82.434,0.45182877]
[1772998774499,0.47123779,82.475,82.436,0.45182877]
[1772998775907,0.47123779,82.474,82.436,0.45182877]
[1772998776081,0.47123779,82.474,82.429,0.45182877]
[1772998776502,0.47123779,82.472,82.43,12.58333428]
[1772998777283,0.47123779,82.472,82.43,0.45182877]
[1772998777683,0.47123779,82.468,82.423,12.58428561]
[1772998777887,0.47123779,82.468,82.424,0.45182877]
[1772998779612,0.47123779,82.465,82.426,0.45182877]
[1772998781007,0.47123779,82.471,82.426,0.45182877]
[1772998781804,0.47123779,82.469,82.428,0.45182877]
[1772998782007,12.12436935,82.479,82.428,0.45182877]
[1772998782197,0.47123779,82.48,82.428,0.45182877]
[1772998783305,0.47123779,82.48,82.429,0.45182877]
[1772998783614,0.47123779,82.489,82.429,0.45182877]
[1772998783814,0.47123779,82.489,82.432,0.45182877]
[1772998786100,0.47123779,82.489,82.437,0.45182877]
[1772998786414,0.47123779,82.51,82.438,0.45182877]
[1772998787216,0.47123779,82.508,82.438,0.45182877]
[1772998787713,0.47123779,82.498,82.438,0.45182877]
[1772998788421,0.47123779,82.495,82.44,0.45182877]
[1772998791824,0.47123779,82.493,82.442,0.45182877]
[1772998792925,0.47123779,82.509,82.444,3.69383402]
[1772998793219,0.47123779,82.509,82.445,0.45182877]
[1772998793820,0.47123779,82.509,82.45,0.45182877]
[1772998794008,0.47123779,82.509,82.451,0.45182877]
[1772998794824,0.47123779,82.509,82.454,0.45182877]
[1772998796113,30.296347,82.519,82.454,0.45182877]
[1772998796429,0.14216157,82.526,82.452,103.09028282]
[1772998796430,0.47123779,82.514,82.457,0.45182877]
[1772998797123,0.47123779,82.513,82.46,0.45182877]
[1772998797331,4.51683701,82.54,82.46,0.45182877]
[1772998797332,0.47123779,82.557,82.461,3.69383402]
[1772998797515,0.47123779,82.557,82.463,0.45182877]
[1772998798324,0.47123779,82.555,82.463,0.45182877]
[1772998798632,0.47123779,82.555,82.471,4.82477569]
[1772998798815,0.47123779,82.555,82.475,0.45182877]
[1772998799215,0.47123779,82.553,82.48,0.45182877]
[1772998799418,0.47123779,82.553,82.481,0.45182877]
[1772998800719,4.51683701,82.54,82.481,0.45182877]
[1772998800927,0.61339936,82.529,82.481,0.45182877]
[1772998801135,0.75556093,82.519,82.481,0.45182877]
[1772998801345,0.47123779,82.515,82.476,12.12473931]